Cogmind - Beta 15 @@@ ROGUE MODE // 2025.05.31 @ 23:36:09 Player: CL-1C0 Result: Destroyed by X-77 Beamer with Gatling Laser Performance ------------- Evolutions (5) 2500 Regions Visited (9) 1800 Robots Destroyed (70) 350 Value Destroyed (2561) 2561 Prototype IDs (2) 40 Alien Tech Used (0) 0 Bonus (690) 690 TOTAL SCORE: 7941 Bonus ------- Registered with UFD 300 Met Optimus in HQ 500 MAIN.C Attacked Warlord 500 Friendly Fire -610 Cogmind --------- Core Integrity 0/1000 Matter 300/300 Energy 150/150 System Corruption 4% Temperature Cool (30) Movement Core (200) Ox3 Location -5/Warlord Parts ------- > --- POWER (2) -------- Micro Fission Core > --- PROPULSION (4) --- (None) > --- UTILITY (9) ------ Improved Transmission Jammer > --- WEAPON (2) ------- Companion Sword > --- INVENTORY (5) ---- Improved Gravmag System Layered Medium Armor Plating Vortex Shotgun (50) Sapper Charge Sapper Charge Peak State ------------ > --- POWER ------------ Neutrino Core Micro Fission Core > --- PROPULSION ------- Gravmag Array Antigrav System Antigrav System > --- UTILITY ---------- Advanced Heat Sink Deep Structural Scanner Advanced Visual Processing Unit Advanced Sensor Array Improved Terrain Scanner Surveybot 17 Chip Improved Target Analyzer Improved Transmission Jammer Mapping Drone Bay > --- WEAPON ----------- Vortex Shotgun Companion Sword > --- INVENTORY -------- Improved Gravmag System Vortex Shotgun Sapper Charge Sapper Charge Sapper Charge [Rating: 96] Favorites ----------- Power Micro Nuclear Core Engine Light Ion Engine Power Core Micro Nuclear Core Propulsion Antigrav System Treads Light Treads Leg Aluminum Leg Wheel Wheel Hover Unit Antigrav System Utility Deep Structural Scanner Device Deep Structural Scanner Storage Large Storage Unit Processor Advanced Melee Analysis Suite Hackware System Shield Protection Improved Heavy Armor Plating Weapon Companion Sword Energy Gun Vortex Shotgun Energy Cannon Proton Cannon Ballistic Gun Assault Rifle Launcher Grenade Launcher Special Weapon CPS Tube Impact Weapon Hammer Slashing Weapon Companion Sword Build | -11 -10 -10 -9 -6 -6 -6 -5 -5 -5 ------- Run | Yrd Mat Sub Scr Fac Low Low Fac Upp War Slots Evolved 10 | . . . . 8 . . 2 . . Power 1 | . . . . . . . 1 . . Propulsion 2 | . . . . 2 . . . . . Utility 7 | . . . . 6 . . 1 . . Weapon . | . . . . . . . . . . Parts Attached 75 | . 6 . 5 28 12 1 19 2 2 Power 7 | . . . . 4 . . 3 . . Engine 1 | . . . . . . . 1 . . Core 6 | . . . . 4 . . 2 . . Reactor . | . . . . . . . . . . Propulsion 26 | . 1 . 2 11 4 1 6 . 1 Treads 5 | . . . 2 1 2 . . . . Leg 8 | . 1 . . 6 1 . . . . Wheel 4 | . . . . 2 1 1 . . . Hover 9 | . . . . 2 . . 6 . 1 Flight . | . . . . . . . . . . Utility 30 | . 1 . 2 12 5 . 9 1 . Device 15 | . 1 . 1 6 2 . 4 1 . Storage 1 | . . . 1 . . . . . . Processor 9 | . . . . 3 1 . 5 . . Hackware 1 | . . . . 1 . . . . . Protection 4 | . . . . 2 2 . . . . Artifact . | . . . . . . . . . . Weapon 12 | . 4 . 1 1 3 . 1 1 1 Energy Gun 3 | . 1 . . . . . 1 . 1 Energy Cannon 1 | . . . . 1 . . . . . Ballistic Gun 2 | . 1 . . . . . . 1 . Ballistic Cannon . | . . . . . . . . . . Launcher 1 | . 1 . . . . . . . . Special Weapon 3 | . . . . . 3 . . . . Impact Weapon 1 | . 1 . . . . . . . . Slashing Weapon 1 | . . . 1 . . . . . . Piercing Weapon . | . . . . . . . . . . Special Melee Weapon . | . . . . . . . . . . Unidentified Prototypes 2 | . . . 1 . . . . . 1 Parts Lost 42 | . . . . 9 7 . 12 1 13 Power 5 | . . . . 2 . . 1 1 1 Propulsion 15 | . . . . 4 4 . 4 . 3 Utility 20 | . . . . 3 3 . 6 . 8 Weapon 2 | . . . . . . . 1 . 1 Highest Loss Streak 12 | . . . . 5 3 . 8 1 12 To Critical Strikes . | . . . . . . . . . . Average Backups 8 | . 7 8 9 12 10 11 6 3 2 Power . | . 1 1 . . 1 1 . . . Propulsion 1 | . 3 3 2 . 1 1 . 2 1 Utility 3 | . 1 2 2 4 6 7 3 . . Weapon 1 | . 1 2 2 3 1 2 . . . Tool/Special . | . . . . . . . . . . Unused Backups 11 | . 2 . 3 2 . . . . 4 Power 1 | . . . . 1 . . . . . Propulsion 2 | . . . . . . . . . 2 Utility 4 | . . . 3 . . . . . 1 Weapon 4 | . 2 . . 1 . . . . 1 Tool/Special . | . . . . . . . . . . Average Slot Usage (%) 83 | . 93 100 89 77 67 86 74 84 92 Engine 3 | . 14 14 9 . . . . 3 . Core 5 | . . . . 5 5 6 7 7 10 Treads 4 | . . . 9 6 3 13 4 . . Leg 9 | . 27 28 18 12 6 3 . . . Wheel 1 | . . . . . 1 8 4 . . Hover 5 | . . . . 2 . . 8 17 16 Device 17 | . 7 14 13 14 8 13 14 29 34 Storage 6 | . 14 14 13 6 6 6 2 . . Processor 12 | . . . . 14 17 20 20 17 17 Protection 1 | . . . . 2 6 6 2 . . Energy Gun 1 | . 14 . . . . . . . 4 Ballistic Gun 3 | . 11 14 9 . . . . 1 . Impact Weapon 1 | . . 14 5 . . . . . . Slashing Weapon 5 | . . . 7 6 6 6 5 5 5 Peak Build Rating 96 | . 7 7 18 67 62 57 83 91 96 Average Rating 49 | . 6 7 11 56 49 55 59 82 94 On Entrance 38 | 6 6 7 7 17 62 57 53 79 91 Naked Turns . | . . . . . . . . . . Heaviest Build 61 | 11 14 13 30 47 53 47 61 36 40 Greatest Support 60 | 20 20 20 40 60 45 20 46 42 42 Greatest Overweight (x) 15 | . 1 . 1 15 14 4 3 . 3 Average Overweight (x) . | . . . . . 2 3 . . . Largest Inventory Capacity 15 | . 8 8 15 15 15 15 15 5 5 Average Capacity 10 | . 8 8 11 15 15 15 9 5 5 Most Carried 15 | . 8 8 15 15 15 15 14 5 5 Average Carried 9 | . 7 8 10 13 12 15 8 3 4 Final Capacity 15 | 8 8 8 15 15 15 15 5 5 5 Final Carried 15 | 6 8 8 15 15 15 15 5 3 5 Class Distribution -------------------- 43% | Mutant 22% | Scavenger-Ninja 13% | Scavenger-Mutant 11% | Scavenger-Assassin 7% | Assassin Dominant Class ---------------- Mutant | -10/Materials Mutant | -10/Subcaves Mutant | -9/Scraptown Scavenger-Mutant | -6/Factory Assassin | -6/Lower Caves Scavenger-Assassin | -6/Lower Caves Scavenger-Assassin | -5/Factory Scavenger-Ninja | -5/Upper Caves Scavenger-Ninja | -5/Warlord Resources | -11 -10 -10 -9 -6 -6 -6 -5 -5 -5 ----------- Run | Yrd Mat Sub Scr Fac Low Low Fac Upp War Matter Collected 2128 | 200 80 . . 1200 281 15 244 93 15 Remotely . | . . . . . . . . . . Salvage Created 3559 | . 284 . . 1402 683 235 504 451 . Parts 177 | . 20 . . 69 42 1 27 18 . Haulers Intercepted . | . . . . . . . . . . Recyclers Shooed 3 | . 1 . . 1 . . 1 . . Parts Field Recycled . | . . . . . . . . . . Retrieved Matter . | . . . . . . . . . . Parts Self-Destructed 59 | . . 6 . . 35 1 . 17 . Prevented 1 | . . . . . . . . 1 . Kills | -11 -10 -10 -9 -6 -6 -6 -5 -5 -5 ------- Run | Yrd Mat Sub Scr Fac Low Low Fac Upp War Combat Hostiles Destroyed 53 | . 12 . . 14 9 . 10 8 . Melee 33 | . . . . 13 4 . 8 8 . Guns 4 | . 3 . . . . . 1 . . Cannons 1 | . . . . 1 . . . . . AOE 15 | . 9 . . . 5 . 1 . . Classes Destroyed 15 | . 3 . . 7 5 . . . . Worker 2 | . . . . 2 . . . . . Builder 1 | . . . . 1 . . . . . Tunneler 3 | . 1 . . 1 . . 1 . . Recycler 5 | . . . . 5 . . . . . Minesweeper 2 | . . . . . 1 . . 1 . Operator 2 | . . . . 1 . . 1 . . Swarmer 14 | . 3 . . 7 1 . . 3 . Grunt 25 | . 9 . . 3 4 . 5 4 . Duelist 1 | . . . . . 1 . . . . Sentry 4 | . . . . . 3 . . 1 . Hunter 2 | . . . . 2 . . . . . Programmer 6 | . . . . 1 . . 5 . . Behemoth 1 | . . . . 1 . . . . . Ranger 1 | . . . . . 1 . . . . Decomposer 3 | . . . . . . 3 . . . Packrat 2 | . . . . . . 2 . . . Mutant 1 | . . . . . 1 . . . . Best Kill Streak 11 | . 11 . . 4 5 . 3 1 . Combat Bots Only 10 | . 10 . . 4 5 . 3 1 . Max Kills in Single Turn 2 | . 2 . . 1 2 1 1 1 . Gunslinging . | . . . . . . . . . . Exploded 2 | . 2 . . . 2 . 1 . . Melee 1 | . . . . 1 1 . 1 1 . Uniques/NPCs Destroyed . | . . . . . . . . . . Combat | -11 -10 -10 -9 -6 -6 -6 -5 -5 -5 -------- Run | Yrd Mat Sub Scr Fac Low Low Fac Upp War Hostile Shots Fired 447 | . 27 4 . 138 77 . 85 37 79 Missed 125 | . 11 2 . 36 15 . 22 11 28 Hits 322 | . 16 2 . 102 62 . 63 26 51 Melee 16 | . . . . . 8 . 5 . 3 Projectile 306 | . 16 2 . 102 54 . 58 26 48 AOE 1 | . . . . 1 . . . . . Critical Strikes 9 | . . . . 3 1 . 4 1 . Damage Taken 6772 | . 188 28 . 2098 1520 . 1393 520 1025 Core 1740 | . 38 . . 448 246 . 497 118 393 Absorbed by Shields . | . . . . . . . . . . Regen/Repaired (Parts) 30 | . . . . . . . . . 30 Core Remaining (%) 67 | 100 . . 84 . . 18 . . . Volleys Fired 47 | . 20 . . 3 18 . 6 . . Largest 2 | . 2 . . 1 1 . 1 . . Hottest 75 | . 60 . . 75 30 . 75 . . Shots Fired 57 | . 30 . . 3 18 . 6 . . Gun 24 | . 20 . . . . . 4 . . Cannon 3 | . . . . 3 . . . . . Launcher 24 | . 10 . . . 12 . 2 . . Special 6 | . . . . . 6 . . . . Kinetic 10 | . 10 . . . . . . . . Thermal 14 | . 10 . . . . . 4 . . Explosive 24 | . 10 . . . 12 . 2 . . Electromagnetic 3 | . . . . 3 . . . . . Robot Hit Streak 8 | . 5 . . 8 2 . 2 . . Robot Miss Streak 3 | . 3 . . . 2 . 2 . . Penetration Max . | . . . . . . . . . . Secondary Targets . | . . . . . . . . . . Shots Hit Robots 177 | . 16 . . 51 33 5 46 25 1 Core Hits 116 | . 26 . . 25 28 3 21 12 1 Critical Kills . | . . . . . . . . . . Critical Parts Destroyed . | . . . . . . . . . . Critical Strikes 6 | . . . . . 2 . 2 2 . Melee Attacks 191 | . 3 . . 60 33 5 51 34 5 Impact 3 | . 3 . . . . . . . . Slashing 188 | . . . . 60 33 5 51 34 5 Piercing . | . . . . . . . . . . Sneak Attacks 33 | . . . . 11 9 5 6 2 . Combat Hostiles . | . . . . . . . . . . Follow-up Attacks 1 | . . . . . . . 1 . . Damage Inflicted 9561 | . 767 . . 2660 2205 441 2353 1101 34 Guns 204 | . 160 . . . . . 44 . . Cannons 100 | . . . . 100 . . . . . Explosions 1508 | . 598 . . . 593 . 317 . . Melee 7740 | . . . . 2560 1612 441 1992 1101 34 Ramming 9 | . 9 . . . . . . . . Kinetic 83 | . 83 . . . . . . . . Thermal 121 | . 77 . . . . . 44 . . Explosive 1508 | . 598 . . . 593 . 317 . . Electromagnetic 100 | . . . . 100 . . . . . Impact . | . . . . . . . . . . Slashing 7740 | . . . . 2560 1612 441 1992 1101 34 Piercing . | . . . . . . . . . . Highest Corruption 9 | . . . . 1 1 1 9 9 9 Average Corruption 3 | . . . . 1 1 1 8 9 7 Corruption Purged . | . . . . . . . . . . Corruption Blocked . | . . . . . . . . . . Effects 53 | . . . . . 14 3 14 22 . Message Errors 10 | . . . . . 2 . 3 5 . Matter Fused 9 | . . . . . 3 2 1 3 . Heat Flow Errors 7 | . . . . . 1 1 3 2 . Energy Discharges 9 | . . . . . 4 . 1 4 . Parts Fused 2 | . . . . . 1 . . 1 . Data Loss (minor) 7 | . . . . . . . 4 3 . Data Loss (major) 5 | . . . . . 1 . 1 3 . Alerts 4 | . . . . . 2 . 1 1 . Overload Shots . | . . . . . . . . . . Overflow Damage 1139 | . . . . 395 201 136 314 93 . Projectiles . | . . . . . . . . . . Explosions . | . . . . . . . . . . Melee 1139 | . . . . 395 201 136 314 93 . Knockbacks . | . . . . . . . . . . Impact . | . . . . . . . . . . Kinetic . | . . . . . . . . . . Secondary . | . . . . . . . . . . Self-Inflicted Damage 67 | . 1 . . . 66 . . . . Shots 6 | . 1 . . . 5 . . . . Rammed . | . . . . . . . . . . Targets Rammed 4 | . 4 . . . . . . . . Kicked 4 | . 4 . . . . . . . . Crushed . | . . . . . . . . . . Highest Temperature 312 | . 24 . . 99 312 89 255 104 18 Average Temperature 81 | . 13 . . 56 129 51 99 57 13 Received Heat Transfer 1584 | . 96 15 . 288 633 . 297 96 159 Effects 1 | . . . . . 1 . . . . Energy Bleed 1 | . . . . . 1 . . . . Siege Activations . | . . . . . . . . . . Martial Activations . | . . . . . . . . . . Shielding Activations . | . . . . . . . . . . Robots Disrupted . | . . . . . . . . . . Combat Hostiles . | . . . . . . . . . . Robots Corrupted . | . . . . . . . . . . Combat Hostiles . | . . . . . . . . . . Parts Fried . | . . . . . . . . . . Impact Corruptions . | . . . . . . . . . . Robots Melted . | . . . . . . . . . . Combat Hostiles . | . . . . . . . . . . Parts Melted 2 | . . . . 1 . . 1 . . Heat Transferred 275 | . 175 . . . . . 100 . . Parts Sabotaged . | . . . . . . . . . . Parts Stolen . | . . . . . . . . . . Parts Stripped . | . . . . . . . . . . Power Chain Reactions . | . . . . . . . . . . Alert | -11 -10 -10 -9 -6 -6 -6 -5 -5 -5 ------- Run | Yrd Mat Sub Scr Fac Low Low Fac Upp War Maximum Alert Level 1 | . 1 . . . . . . . . Low Security (%) 95 | . 74 . . 100 . . 100 . . Level 1 4 | . 25 . . . . . . . . Level 2 . | . . . . . . . . . . Level 3 . | . . . . . . . . . . Level 4 . | . . . . . . . . . . Level 5 . | . . . . . . . . . . High Security . | . . . . . . . . . . Max Security . | . . . . . . . . . . Peak Influence 316 | . 316 . . 153 . . 61 . . Initial . | . . . . . . . . . . Average 51 | . 83 . . 64 . . 10 . . Influence Increases 1677 | . 387 . . 521 210 . 309 235 15 Destroy 0b10 Robot/C 1060 | . 240 . . 280 180 . 200 160 . Destroy 0b10 Robot/NC 85 | . 5 . . 50 15 . 10 5 . Destroy Leader 160 | . 50 . . 60 . . 40 10 . Trap Triggered on 0b10 10 | . . . . . . . 10 . . Successful Hack 26 | . . . . 21 . . 5 . . Disable Machine 30 | . 15 . . . . . 15 . . Destroy Structure 51 | . 32 . . 5 . . 14 . . Lose Combat Pursuer 255 | . 45 . . 105 15 . 15 60 15 Influence Decreases 1677 | . 112 275 . 457 274 . 277 242 40 Entered New Map 196 | . . 133 . . 25 . . 13 25 Time Decay 1291 | . 112 142 . 418 209 . 176 219 15 Lost Part 190 | . . . . 39 40 . 101 10 . Squads Dispatched 14 | . 3 . . 3 . . 8 . . Investigation 5 | . 2 . . . . . 3 . . Extermination 3 | . . . . 1 . . 2 . . Reinforcement 6 | . 1 . . 2 . . 3 . . Assault . | . . . . . . . . . . Garrison . | . . . . . . . . . . Intercept . | . . . . . . . . . . Searches Triggered . | . . . . . . . . . . Construction Impeded 2 | . . . . 1 . . 1 . . Haulers Reinforced . | . . . . . . . . . . Active Scanning Responses . | . . . . . . . . . . Cargo Convoy Interrupts . | . . . . . . . . . . Stealth | -11 -10 -10 -9 -6 -6 -6 -5 -5 -5 --------- Run | Yrd Mat Sub Scr Fac Low Low Fac Upp War Distress Signals 4 | . . . . 1 . . . . 3 Communications Jammed 8 | . . . . . . . 1 . 7 Distress Signals 8 | . . . . . . . 1 . 7 Times Spotted 94 | . 14 2 . 24 8 . 16 13 17 Peak Tracking Total 15 | . 6 2 . 5 6 . 6 4 15 Tactical Retreats 11 | . 1 . . 4 1 . 1 3 1 Traps | -11 -10 -10 -9 -6 -6 -6 -5 -5 -5 ------- Run | Yrd Mat Sub Scr Fac Low Low Fac Upp War Traps Triggered 4 | . 3 . . . . . 1 . . Indirectly . | . . . . . . . . . . Trap Hack Attempts . | . . . . . . . . . . Triggered . | . . . . . . . . . . Disarmed . | . . . . . . . . . . Reprogrammed . | . . . . . . . . . . Reused 3 | . . . . . . . 1 2 . Traps Extracted . | . . . . . . . . . . Installed 4 | . . . . . . . 2 2 . Triggered 3 | . . . . . . . 1 2 . Most Traps Carried 4 | . . . . . 4 4 4 2 . Machines | -11 -10 -10 -9 -6 -6 -6 -5 -5 -5 ---------- Run | Yrd Mat Sub Scr Fac Low Low Fac Upp War Machines Disabled 4 | . 1 . . . 2 . 1 . . Max in Single Turn 1 | . 1 . . . 1 . 1 . . Machines Repaired . | . . . . . . . . . . Machines Dismantled . | . . . . . . . . . . Machines Sabotaged . | . . . . . . . . . . Overloaded Fab Kills . | . . . . . . . . . . Hacking | -11 -10 -10 -9 -6 -6 -6 -5 -5 -5 --------- Run | Yrd Mat Sub Scr Fac Low Low Fac Upp War Machines Accessed 25 | . 1 . 4 6 1 . 7 . 6 Terminals 9 | . 1 . . 4 . . 4 . . Fabricators . | . . . . . . . . . . Repair Stations . | . . . . . . . . . . Recycling Units 3 | . . . . . . . 3 . . Scanalyzers . | . . . . . . . . . . Garrison Access 2 | . . . . 2 . . . . . Total Hacks 70 | . 3 . 29 12 1 . 17 . 8 Successful 45 | . . . 29 2 1 . 5 . 8 Failed 25 | . 3 . . 10 . . 12 . . Catastrophic 6 | . 1 . . 4 . . 1 . . Database Lockouts . | . . . . . . . . . . Manual 18 | . . . . 6 . . 12 . . Terminals 25 | . 3 . . 9 . . 13 . . Fabricators . | . . . . . . . . . . Repair Stations . | . . . . . . . . . . Recycling Units 4 | . . . . . . . 4 . . Scanalyzers . | . . . . . . . . . . Garrison Access 3 | . . . . 3 . . . . . Terminal Hacks 40 | . . . 29 1 1 . 1 . 8 Record 34 | . . . 28 . . . . . 6 Open Door 4 | . . . 1 . 1 . . . 2 Hauler Manifests 1 | . . . . . . . 1 . . Zone Layout 1 | . . . . 1 . . . . . Fabricator Hacks . | . . . . . . . . . . Repair Station Hacks . | . . . . . . . . . . Recycling Unit Hacks . | . . . . . . . . . . Scanalyzer . | . . . . . . . . . . Garrison Access Hacks . | . . . . . . . . . . Unauthorized Hacks 5 | . . . . 1 . . 4 . . Terminals 3 | . . . . 1 . . 2 . . Track 1 | . . . . . . . 1 . . Operators 2 | . . . . 1 . . 1 . . Fabricators . | . . . . . . . . . . Repair Stations . | . . . . . . . . . . Recycling Units 2 | . . . . . . . 2 . . Fedlink 2 | . . . . . . . 2 . . Scanalyzers . | . . . . . . . . . . Garrison Access . | . . . . . . . . . . Data Cores Recovered . | . . . . . . . . . . Used . | . . . . . . . . . . Hacking Detections 12 | . 1 . . 6 . . 5 . . Full Trace Events 1 | . . . . . . . 1 . . Feedback Events . | . . . . . . . . . . Feedback Blocked . | . . . . . . . . . . Robot Schematics Acquired . | . . . . . . . . . . Robots Built . | . . . . . . . . . . Authchips . | . . . . . . . . . . Time . | . . . . . . . . . . Total Robot Build Rating . | . . . . . . . . . . Part Schematics Acquired . | . . . . . . . . . . Parts Built . | . . . . . . . . . . Authchips . | . . . . . . . . . . Time . | . . . . . . . . . . Total Part Build Rating . | . . . . . . . . . . Parts Repaired . | . . . . . . . . . . Time . | . . . . . . . . . . Parts Recycled . | . . . . . . . . . . Recycled Matter . | . . . . . . . . . . Retrieved Matter . | . . . . . . . . . . Retrieved Components . | . . . . . . . . . . Parts Scanalyzed . | . . . . . . . . . . Part Schematics Acquired . | . . . . . . . . . . Parts Damaged . | . . . . . . . . . . Bothacking | -11 -10 -10 -9 -6 -6 -6 -5 -5 -5 ------------ Run | Yrd Mat Sub Scr Fac Low Low Fac Upp War Used RIF Installer . | . . . . . . . . . . Robots Hacked . | . . . . . . . . . . Non-combat . | . . . . . . . . . . Combat . | . . . . . . . . . . Robot Hacks Applied . | . . . . . . . . . . Relay Couplers Released . | . . . . . . . . . . Fabnet Peak Effective % . | . . . . . . . . . . Robots Rewired . | . . . . . . . . . . Allies Hacked . | . . . . . . . . . . Hacks Repelled . | . . . . . . . . . . Allies | -11 -10 -10 -9 -6 -6 -6 -5 -5 -5 -------- Run | Yrd Mat Sub Scr Fac Low Low Fac Upp War Total Allies . | . . . . . . . . . . Largest Group . | . . . . . . . . . . Highest-Rated Group . | . . . . . . . . . . Highest-Rated Ally . | . . . . . . . . . . Total Orders 2 | . . . . . . . . 2 . RETURN 2 | . . . . . . . . 2 . Ally Attacks . | . . . . . . . . . . Total Damage . | . . . . . . . . . . Kills . | . . . . . . . . . . Allies Corrupted . | . . . . . . . . . . Allies Melted 2 | . . . . . . . . . 2 Intel | -11 -10 -10 -9 -6 -6 -6 -5 -5 -5 ------- Run | Yrd Mat Sub Scr Fac Low Low Fac Upp War Active Infowar (turns) 7259 | . 271 426 1643 667 931 464 773 683 1401 Optics 2462 | . . . . . . . 386 683 1393 Sensors 3933 | . . . . . 789 464 695 598 1387 Terrain 2116 | . . . . 40 . . 174 683 1219 Structural 6542 | . 271 426 1643 627 661 464 494 576 1380 Jamming 2143 | . . . . . 47 . 35 660 1401 Robot Analysis Total . | . . . . . . . . . . Derelict Logs Recovered . | . . . . . . . . . . Drone Launches 6 | . . . . . . . . 6 . Drone Recoveries 6 | . . . . . . . . 6 . Exploration | -11 -10 -10 -9 -6 -6 -6 -5 -5 -5 ------------- Run | Yrd Mat Sub Scr Fac Low Low Fac Upp War Turns Passed 8688 | . 478 426 1739 1240 1484 464 773 683 1401 Spaces Moved 5045 | 1 321 285 1193 512 458 360 473 727 715 Core 138 | . . . 120 1 11 . 3 . 3 Treads 550 | . . . 259 159 132 . . . . Legs 1885 | 1 321 285 814 298 166 . . . . Wheels 673 | . . . . 54 149 360 110 . . Hover 1799 | . . . . . . . 360 727 712 Flight . | . . . . . . . . . . Fastest Speed 50 | 120 120 120 50 115 120 110 52 52 52 Average Speed 113 | 120 120 120 132 164 224 125 76 52 52 Slowest Speed 800 | 120 190 120 190 800 750 140 200 52 200 Overloaded Moves . | . . . . . . . . . . Propulsion Burnouts . | . . . . . . . . . . Robots Hopped . | . . . . . . . . . . Potential Cave-ins 2 | . . . . . . . . . 2 Cave-ins Triggered . | . . . . . . . . . . Exploration Rate (%) 47 | 2 79 20 87 14 61 39 12 79 81 Regions Visited 9 Branch Regions 6 Pre-discovered Areas 7 | . . . 6 . . . 1 . . Known Exits Taken 4 | . . . . 1 1 1 1 . . Unknown Exits Taken 5 | 1 1 1 1 . . . . 1 . Scrap Searched 3 | . . . . . 1 1 . 1 . Spaces Dug 35 | . 7 . . 5 15 . 4 3 1 Terrain Destroyed 129 | . 42 . . 5 71 . 7 3 1 Melee 15 | . 1 . . 5 1 . 4 3 1 Projectile 1 | . . . . . . . 1 . . AOE 113 | . 41 . . . 70 . 2 . . Terrain Rammed . | . . . . . . . . . . Walls Destroyed . | . . . . . . . . . . Machines Disabled . | . . . . . . . . . . Actions | -11 -10 -10 -9 -6 -6 -6 -5 -5 -5 --------- Run | Yrd Mat Sub Scr Fac Low Low Fac Upp War Total 7665 | . 375 369 1360 822 849 366 804 988 1732 Wait 2164 | . 12 85 127 192 307 . 228 212 1001 Move 5036 | . 320 284 1192 511 457 359 472 726 715 Hop . | . . . . . . . . . . Pick Up 59 | . 6 . 20 14 8 . 5 1 5 Fast Attach 45 | . 2 . 4 16 6 1 13 2 1 Attach 37 | . 1 . 2 10 9 . 10 5 . Detach 13 | . . . 1 1 5 . 2 4 . Swap 13 | . 4 . 1 3 2 . 2 . 1 Drop 51 | . 3 . 13 13 3 1 12 2 4 Fire 47 | . 20 . . 3 18 . 6 . . Melee 189 | . 3 . . 59 33 5 50 34 5 Ram . | . . . . . . . . . . Kick 4 | . 4 . . . . . . . . Crush . | . . . . . . . . . . Escape Stasis 2 | . . . . . . . 2 . . Rewire . | . . . . . . . . . . Trap 4 | . . . . . . . 2 2 . Miscellaneous 1 | . . . . . 1 . . . . Route ------- -11/Scrapyard -10/Materials (discovered 5 exits: [*Mat x3] / [*Min] / [*Sub]) -10/Subcaves -9/Scraptown (discovered 2 exits: *Fac x2) -6/Factory (discovered 4 exits: Fac x2 / *Low / Ext) -6/Lower Caves -6/Lower Caves (discovered 2 exits: *Fac / Zio) -5/Factory (discovered 2 exits: *Upp x2) -5/Upper Caves (discovered 2 exits: [*Upp] / *War) -5/Warlord (discovered 1 exit: [Pro]) History --------- Turn | Location | Event 1 | -11/Scrapyard | Discovered new exit (range 0) 1 | -11/Scrapyard | Entered Materials 1 | -10/Materials | Discovered new exit (range 15) 192 | -10/Materials | Discovered new exit (range 14) 278 | -10/Materials | Discovered new exit (range 15) 305 | -10/Materials | Build established: Mutant 396 | -10/Materials | Destroyed 10 combat bots 453 | -10/Materials | Discovered new exit (range 16) 461 | -10/Materials | Discovered new exit (range 8) 479 | -10/Materials | Entered Subcaves 480 | -10/Subcaves | Approached by a straggling Scientist 611 | -10/Subcaves | A swath of the cavern ceiling suddenly collapsed 662 | -10/Subcaves | Scientist uncovered a shortcut to Scraptown 905 | -10/Subcaves | Entered Scraptown 1153 | -9/Scraptown | Received an X-ray algorithm 1217 | -9/Scraptown | Heard Great Nut preacher, LISTEN AND RECITE! 1221 | -9/Scraptown | Discovered new exit (range 11) 1309 | -9/Scraptown | Visited IN-MT5's Study 1407 | -9/Scraptown | Visited Cyclists 1439 | -9/Scraptown | Visited The Evicted 1456 | -9/Scraptown | Visited UFD Registry 1456 | -9/Scraptown | Registered with UFD as "Datadriver" 1481 | -9/Scraptown | Visited Junk Repository 1513 | -9/Scraptown | Entered Cyclist Reading Room 1515 | -9/Scraptown | Learned location of Zion (-6) 1577 | -9/Scraptown | Visited Chapter 10 1618 | -9/Scraptown | Visited Sword Containment 1660 | -9/Scraptown | Visited Supply Room 1827 | -9/Scraptown | Visited Curators Association 1856 | -9/Scraptown | Visited Research Penetration Think Tank 1902 | -9/Scraptown | Visited Scrap Suit Storage 1911 | -9/Scraptown | Found Scrap Suit 1939 | -9/Scraptown | Visited Scrapoid Pod Storage 1950 | -9/Scraptown | Found Scrapoid Pod 1984 | -9/Scraptown | Visited Derelict Rescue Squad 1995 | -9/Scraptown | Found DRS Beacon 2042 | -9/Scraptown | Visited Junk Repository 2109 | -9/Scraptown | Visited Cartography Club 2138 | -9/Scraptown | Found Surveybot 17 Chip 2168 | -9/Scraptown | Found Deep Structural Scanner 2174 | -9/Scraptown | Learned location of 1 exit from Proximity Caves 2174 | -9/Scraptown | Learned location of 2 exits from Lower Caves 2174 | -9/Scraptown | Learned location of 1 exit from Lower Caves 2174 | -9/Scraptown | Learned Materials emergency access door positions 2174 | -9/Scraptown | Learned 20 Proximity Caves zone layouts 2174 | -9/Scraptown | Learned 8 Proximity Caves zone layouts 2174 | -9/Scraptown | Learned 4 Recycling zone layouts 2174 | -9/Scraptown | Learned 4 Access zone layouts 2174 | -9/Scraptown | Learned 20 Factory zone layouts 2174 | -9/Scraptown | Learned 16 Materials zone layouts 2174 | -9/Scraptown | Learned location of Armory (-4) 2174 | -9/Scraptown | Learned location of Archives (-6) 2174 | -9/Scraptown | Learned location of Upper Caves (-4) 2174 | -9/Scraptown | Learned location of Storage (-9) 2320 | -9/Scraptown | Visited SPCMW 2341 | -9/Scraptown | Visited Red Mages 2560 | -9/Scraptown | Met Optimus 2560 | -9/Scraptown | Accepted into 0bPrime 2637 | -9/Scraptown | Discovered new exit (range 5) 2644 | -9/Scraptown | Entered Factory 2644 | -6/Factory | Evolved 8 slots: Propulsion x2, Utility x6 2645 | -6/Factory | Identified exit to Factory 2645 | -6/Factory | Identified exit to Extension 3267 | -6/Factory | Build established: Scavenger-Mutant 3273 | -6/Factory | Spotted B-75 Beast 3357 | -6/Factory | Destroyed B-75 Beast 3383 | -6/Factory | Lost 5 parts (1p2n2u) 3446 | -6/Factory | Lost 3 parts (2n1u) 3557 | -6/Factory | Core integrity fell below 50% 3854 | -6/Factory | Discovered new exit (range 16) 3880 | -6/Factory | Identified exit to Lower Caves 3884 | -6/Factory | Entered Lower Caves 3885 | -6/Lower Caves | Identified exit to Lower Caves 3886 | -6/Lower Caves | Attracted the attention of an 0b10 outpost 4068 | -6/Lower Caves | Spotted B-75 Beast 4109 | -6/Lower Caves | Lost 3 parts (2n1u) 4378 | -6/Lower Caves | Build established: Assassin 4509 | -6/Lower Caves | Lost 3 parts (2n1u) 4743 | -6/Lower Caves | Activated DRS Beacon 4757 | -6/Lower Caves | Build established: Mutant 4852 | -6/Lower Caves | Core integrity fell below 20% 5061 | -6/Lower Caves | Encountered a Warlord checkpoint 5368 | -6/Lower Caves | Entered another Lower Caves area 5369 | -6/Lower Caves | Identified exit to Zion 5491 | -6/Lower Caves | Build established: Scavenger-Assassin 5832 | -6/Lower Caves | Entered Factory 5832 | -5/Factory | Evolved 2 slots: Power x1, Utility x1 5833 | -5/Factory | Identified exit to Upper Caves 6225 | -5/Factory | Lost 8 parts (4n3u1w) 6506 | -5/Factory | Loaded intel: 8 recycling unit locations 6527 | -5/Factory | Learned location of Protoforge (-2) 6535 | -5/Factory | Discovered exit to Upper Caves (range 19) 6605 | -5/Factory | Entered Upper Caves 6635 | -5/Upper Caves | Core integrity fell below 50% 6822 | -5/Upper Caves | Spotted B-75 Beast 6870 | -5/Upper Caves | Build established: Scavenger-Ninja 7001 | -5/Upper Caves | Attracted the attention of an 0b10 checkpoint 7190 | -5/Upper Caves | A Derelict revealed a hidden shortcut to "reach the base" 7260 | -5/Upper Caves | Discovered new exit (range 6) 7288 | -5/Upper Caves | Entered Warlord 7306 | -5/Warlord | System corruption cleaned by Quarantine Array 7332 | -5/Warlord | Learned Quarantine trap positions 7333 | -5/Warlord | Learned 4 Research zone layouts 7333 | -5/Warlord | Learned Armory scanalyzer intel 7474 | -5/Warlord | Visited the Vortex Lab 7484 | -5/Warlord | Found Prototype Energy Gun 7484 | -5/Warlord | Identified Vortex Shotgun 7486 | -5/Warlord | Found Vortex Shotgun 7494 | -5/Warlord | Warlord's base attacked by MAIN.C 7758 | -5/Warlord | Opened side exit 7764 | -5/Warlord | Discovered new exit (range 15) 7844 | -5/Warlord | Warlord forces counterattacked 7882 | -5/Warlord | Spotted Executioner 8169 | -5/Warlord | Warlord base infiltrated, sounded retreat 8507 | -5/Warlord | Spotted Executioner 8666 | -5/Warlord | Spotted Striker 8675 | -5/Warlord | Spotted Striker 8684 | -5/Warlord | Core integrity fell below 20% 8689 | -5/Warlord | Destroyed by X-77 Beamer with Gatling Laser Last Messages --------------- 08669_ Knocked back. 08672_ Mapping Drone Bay destroyed. 08674_ Antigrav System destroyed. 08674_ Knocked back. 08675_ Antigrav System destroyed. 08675_ Neutrino Core destroyed. 08675_ Vortex Shotgun destroyed. 08675_ Adv. Sensor Array destroyed. 08678_ Knocked back. 08678_ Penetrated by Slug. 08678_ Gravmag Array destroyed. 08681_ Adv. Visual Processing Unit destroyed. 08681_ System corrupted by crushing effect (+4). 08681_ Adv. Heat Sink destroyed. 08684_ ANNOUNCEMENT: MAIN.C reinforcements approaching through caves, arriving soon. 08684_ I-47 Archangel distress signal jammed. 08688_ Imp. Target Analyzer destroyed. 08688_ I-47 Archangel distress signal jammed. 08689_ Surveybot 17 Chip destroyed. Map ----- +----------------------------------------------------+ | | | | | | | | | ##############################?????????? | | ###############################????????? | | ################ ################??????? | | ############ # #################?????? | | #######X###""""""""################????? | | % ##############?????? | | %%= ###############????? | | ###########"""%*"" ###############????? | | ############ # ###############????? | | ################## ################???? | | ################## ################???? | | ################## ################???? | | ################## ################???? | | ################# ########## ###??? | | ################ % ######### #??? | | ################ gx#" ###### < ? ? | | ################ %; ####" ? | | ################^ ;; ## " ;;#? | | ################# [*; ###" ;;#?? | | ##################; =i;;# #"" #???? | | ###################;%!*K ## ;; ###### | | ################## ;;%=;b@ ##" ####### | | ################## ##ss;##l# ####### | | ##################### ##### | | ###################### """i "## ### | | ####""################# % ;;## ## | | ####""#################"# =### ## | | ####""##################" % *%;## ### | | ## #""################# "% %;## ### | | ####""################# %" ;## ### | | ####""############## # #### ## | | # "" "########### # #!# ### ### | | # "" """""""""""" # ##### # #### | | # "" """"""""""""### ##### ##### | | / ###* ### ##### | | / %% + [= ## #### | | / ^ + % #### #### | | / ^ #### ##### #### | | # "" """"""""""""##### ##### #### | | # "" """"""""""""##### ##### ### | | # "" "################ #### # ### | | ####""#################### ### ### | | ####""################### ### ### | | ####""################## ### #### | | ####""###########?###### #### #### | | ####""######???######## ##### ##### | +----------------------------------------------------+ Best States ------------- Heat Dissipation 59 Energy Generation 29 Energy Capacity 365 Matter Stores 300 Matter Capacity 300 Sight Range 20 Robot Scan Range 16 Terrain Scan Range 16 Terrain Scan Density 1210 Jamming Range 14 Armor Coverage 825 Melee Speed Boost 20 Phase Shifting 5 Evasion (%) 55 Melee Accuracy 16 Target Analysis 9 Core Analysis 6 Recoil Reduction 3 Defensive Hacking 10 Item Schematics ----------------- None Robot Schematics ------------------ None Fabricated ------------ Nothing Repaired ---------- Nothing Alien Tech Used ----------------- None Achievements -------------- None Challenges ------------ None Game ------ Seed TargetSkeletonDetonator Manual? 0 Play Time 01:16:48 Cumulative 506.0 hours Start 2025.05.31 @ 22:07:25 End 2025.05.31 @ 23:36:09 Sessions 1 Manual Loads 0 Difficulty Rogue Special Mode None Game No. 554 Rogue 554 Adventurer 0 Explorer 0 Win Type - Total 14 Types 9/0/4/1/0/0/0/0/0/0 Lore% 78 Gallery% 80 Achievement% 82 Wizard Run 0 Options --------- Layout 0 ASCII 0 Keyboard 0 Movement Numpad Keybinds 0 Fullscreen 1 Font 18/SmallcapsGlow Map View 76x50 Zoom Use 0% Tactical HUD 1 Map Filters NONE Filters NONE Steam 1 RUN: 430920bb-eae7-4d41-98e1-baf8e240955e